Cogmind - Beta 16.1 @@@ ROGUE MODE // 2026.04.07 @ 17:30:54 Player: aloola Result: Destroyed by as-58034 with Assembled Heavy Rifle Performance ------------- Evolutions (0) 0 Regions Visited (4) 800 Robots Destroyed (16) 80 Value Destroyed (122) 122 Prototype IDs (23) 460 Alien Tech Used (0) 0 Bonus (0) 0 TOTAL SCORE: 1462 Bonus ------- None Cogmind --------- Core Integrity 0/250 Matter 225/300 Energy 100/100 System Corruption 1% Temperature Cool (0) Movement Core (750) Ox14 Location -9/Mines Parts ------- > --- POWER (1) -------- (None) > --- PROPULSION (2) --- (None) > --- UTILITY (2) ------ High-capacity Storage Unit Targeting Computer > --- WEAPON (2) ------- Assault Rifle Makeshift Axe > --- INVENTORY (20) --- Light Ion Engine High-capacity Storage Unit Structural Scanner Makeshift Terrain Scanner Makeshift Terrain Scan Processor Seismic Detector Seismic Detector Makeshift Hacking Suite Army-in-a-Box (30/30) Medium Laser Peak State ------------ > --- POWER ------------ Ion Engine > --- PROPULSION ------- Light Treads Light Treads > --- UTILITY ---------- High-capacity Storage Unit Seismic Detector > --- WEAPON ----------- EM Pulse Gun Makeshift Axe > --- INVENTORY -------- Light Ion Engine Light Treads Light Treads High-capacity Storage Unit Structural Scanner Makeshift Terrain Scanner Makeshift Terrain Scan Processor Seismic Detector Targeting Computer Makeshift Hacking Suite Army-in-a-Box Medium Laser Assault Rifle Light Assault Rifle Grenade Launcher [Rating: 18] Favorites ----------- Power Ion Engine Engine Ion Engine Propulsion Light Treads Treads Light Treads Utility Seismic Detector Device Seismic Detector Storage High-capacity Storage Unit Processor Targeting Computer Weapon EM Pulse Gun Energy Gun EM Pulse Gun Ballistic Gun Light Assault Rifle Launcher Grenade Launcher Slashing Weapon Makeshift Axe Build | -11 -10 -10 -10 -9 ------- Run | Yrd Mat Min Exi Min Slots Evolved . | . . . . . Power . | . . . . . Propulsion . | . . . . . Utility . | . . . . . Weapon . | . . . . . Parts Attached 20 | 7 4 1 3 5 Power 3 | 1 2 . . . Engine 3 | 1 2 . . . Core . | . . . . . Reactor . | . . . . . Propulsion 4 | 2 . . . 2 Treads 4 | 2 . . . 2 Leg . | . . . . . Wheel . | . . . . . Hover . | . . . . . Flight . | . . . . . Utility 6 | 2 1 . 2 1 Device 2 | 1 . . 1 . Storage 3 | 1 1 . 1 . Processor 1 | . . . . 1 Hackware . | . . . . . Protection . | . . . . . Artifact . | . . . . . Weapon 7 | 2 1 1 1 2 Energy Gun 3 | 2 1 . . . Energy Cannon . | . . . . . Ballistic Gun 2 | . . . . 2 Ballistic Cannon . | . . . . . Launcher 1 | . . 1 . . Special Weapon . | . . . . . Impact Weapon . | . . . . . Slashing Weapon 1 | . . . 1 . Piercing Weapon . | . . . . . Special Melee Weapon . | . . . . . Unidentified Prototypes . | . . . . . Parts Lost 7 | . . . . 7 Power 1 | . . . . 1 Propulsion 3 | . . . . 3 Utility . | . . . . . Weapon 3 | . . . . 3 Highest Loss Streak 7 | . . . . 7 To Critical Strikes . | . . . . . Average Backups 14 | 3 10 15 16 14 Power . | . . 1 1 1 Propulsion 1 | . . 1 2 1 Utility 8 | . 6 9 9 8 Weapon 3 | . 2 3 3 3 Tool/Special . | . . . . . Unused Backups 17 | . 4 1 4 8 Power 2 | . 1 . . 1 Propulsion 1 | . 1 . . . Utility 13 | . 1 1 4 7 Weapon 1 | . 1 . . . Tool/Special . | . . . . . Average Slot Usage (%) 99 | . 100 100 99 93 Engine 13 | . 14 14 14 10 Treads 27 | . 28 28 28 25 Device 13 | . 14 14 13 13 Storage 14 | . 14 14 14 14 Energy Gun 17 | . 28 17 14 10 Launcher 5 | . . 10 7 2 Slashing Weapon 5 | . . . 6 12 Peak Build Rating 18 | 7 8 8 18 18 Average Rating 11 | 5 7 8 12 16 On Entrance 8 | . 7 8 8 18 Avg Prop Armor Cover (%) . | . . . . . Naked Turns . | . . . . . Heaviest Build 51 | 13 30 31 51 51 Greatest Support 40 | 40 40 40 40 40 Greatest Overweight (x) 3 | 3 . . 1 2 Average Overweight (x) . | . . . . 1 Largest Inventory Capacity 20 | 8 15 15 20 20 Average Capacity 16 | 7 11 15 18 20 Most Carried 20 | 6 15 15 20 20 Average Carried 15 | 3 10 14 18 18 Final Capacity 20 | 8 15 15 20 20 Final Carried 20 | 6 15 15 20 15 Class Distribution -------------------- 100% | Mutant Dominant Class ---------------- Mutant | -10/Materials Mutant | -10/Mines Mutant | -10/Exiles Mutant | -9/Mines Resources | -11 -10 -10 -10 -9 ----------- Run | Yrd Mat Min Exi Min Matter Collected 378 | 270 40 20 40 8 Remotely . | . . . . . Salvage Created 676 | 158 264 15 221 18 Parts 36 | 18 9 5 4 . Haulers Intercepted 2 | . 2 . . . Recyclers Shooed 2 | . 2 . . . Parts Field Recycled . | . . . . . Retrieved Matter . | . . . . . Parts Self-Destructed . | . . . . . Prevented . | . . . . . Parts Restored . | . . . . . Kills | -11 -10 -10 -10 -9 ------- Run | Yrd Mat Min Exi Min Combat Hostiles Destroyed 7 | . 3 2 . 2 Melee 1 | . . . . 1 Guns 4 | . 3 . . 1 AOE 2 | . . 2 . . Classes Destroyed 7 | 3 3 . . 1 Worker 2 | 2 . . . . Tunneler 4 | 4 . . . . Hauler 2 | . 2 . . . Recycler 2 | 1 1 . . . Operator 1 | . 1 . . . Swarmer 5 | . 3 2 . . Assembled 2 | . . . . 2 Best Kill Streak 5 | 5 3 2 . 1 Combat Bots Only 3 | . 3 2 . 1 Max Kills in Single Turn 2 | 1 1 2 . 1 Gunslinging . | . . . . . Exploded 2 | . . 2 . . Melee 1 | . . . . 1 Uniques/NPCs Destroyed . | . . . . . Combat | -11 -10 -10 -10 -9 -------- Run | Yrd Mat Min Exi Min Hostile Shots Fired 127 | . 22 3 . 102 Missed 31 | . 5 1 . 25 Hits 96 | . 17 2 . 77 Melee 5 | . . . . 5 Projectile 91 | . 17 2 . 72 AOE 3 | . . . . 3 Critical Strikes 1 | . . . . 1 Part Disruptions 1 | . . . . 1 Damage Taken 1286 | . 134 14 . 1138 Core 262 | . 18 . . 244 Absorbed by Shields . | . . . . . Regen/Repaired (Parts) 6 | . 6 . . . Core Remaining (%) 100 | 100 . . . . Volleys Fired 45 | 10 20 1 2 12 Largest 2 | 2 2 1 1 2 Hottest 90 | 90 90 30 40 70 Shots Fired 77 | 20 40 1 2 14 Gun 73 | 20 40 . 2 11 Cannon . | . . . . . Launcher 4 | . . 1 . 3 Special . | . . . . . Kinetic 8 | . . . . 8 Thermal 30 | 10 20 . . . Explosive 4 | . . 1 . 3 Electromagnetic 35 | 10 20 . 2 3 Robot Hit Streak 8 | 4 6 6 . 8 Robot Miss Streak 9 | 1 9 . . 2 Penetration Max . | . . . . . Secondary Targets . | . . . . . Shots Hit Robots 55 | 12 20 1 12 10 Core Hits 27 | 7 8 2 5 5 Critical Kills . | . . . . . Critical Parts Destroyed . | . . . . . Critical Strikes 3 | 1 2 . . . Burn 3 | 1 2 . . . Melee Attacks 60 | . . . 55 5 Impact . | . . . . . Slashing 60 | . . . 55 5 Piercing . | . . . . . Sneak Attacks . | . . . . . Combat Hostiles . | . . . . . Follow-up Attacks . | . . . . . Damage Inflicted 2040 | 204 360 118 964 394 Guns 496 | 169 260 . . 67 Cannons . | . . . . . Explosions 470 | 35 81 107 . 247 Melee 1044 | . . . 964 80 Ramming 30 | . 19 11 . . Kinetic 44 | . . . . 44 Thermal 329 | 111 218 . . . Explosive 354 | . . 107 . 247 Electromagnetic 239 | 93 123 . . 23 Impact . | . . . . . Slashing 1044 | . . . 964 80 Piercing . | . . . . . Highest Corruption 1 | . . . . 1 Average Corruption 1 | . . . . 1 Corruption Purged . | . . . . . Corruption Blocked . | . . . . . Overload Shots . | . . . . . Overflow Damage 158 | . . . 148 10 Projectiles . | . . . . . Explosions 10 | . . . . 10 Melee 148 | . . . 148 . Knockbacks 1 | . . 1 . . Impact 1 | . . 1 . . Kinetic . | . . . . . Secondary . | . . . . . Self-Inflicted Damage 38 | . . . . 38 Shots 1 | . . . . 1 Rammed 5 | . 4 1 . . Targets Rammed 6 | . 5 1 . . Kicked . | . . . . . Crushed 1 | . 1 . . . Highest Temperature 282 | 120 282 . . 18 Average Temperature 72 | 41 94 . . 9 Received Heat Transfer 100 | . . . . 100 Siege Activations . | . . . . . Martial Activations . | . . . . . Shielding Activations . | . . . . . Robots Disrupted . | . . . . . Combat Hostiles . | . . . . . Robots Corrupted . | . . . . . Combat Hostiles . | . . . . . Parts Fried . | . . . . . Impact Corruptions . | . . . . . Robots Melted . | . . . . . Combat Hostiles . | . . . . . Parts Melted 1 | . 1 . . . Heat Transferred 951 | 346 605 . . . Parts Sabotaged . | . . . . . Parts Stolen . | . . . . . Parts Stripped . | . . . . . Power Chain Reactions 3 | 1 2 . . . Alert | -11 -10 -10 -10 -9 ------- Run | Yrd Mat Min Exi Min Maximum Alert Level . | . . . . . Low Security (%) 100 | 100 100 100 . 100 Level 1 . | . . . . . Level 2 . | . . . . . Level 3 . | . . . . . Level 4 . | . . . . . Level 5 . | . . . . . High Security . | . . . . . Max Security . | . . . . . Peak Influence 106 | 10 106 50 . 14 Initial . | . . . . . Average 9 | 1 11 15 . . Influence Increases 264 | 35 146 50 10 23 Destroy 0b10 Robot/C 100 | . 60 40 . . Destroy 0b10 Robot/NC 65 | 35 20 . 10 . Destroy Leader 24 | . 14 10 . . Disable Machine 15 | . 15 . . . Destroy Structure 30 | . 7 . . 23 Lose Combat Pursuer 30 | . 30 . . . Influence Decreases 264 | 35 146 50 10 23 Time Decay 241 | 35 146 50 10 . Lost Part 9 | . . . . 9 Lost Ally 14 | . . . . 14 Squads Dispatched 3 | . 3 . . . Investigation 2 | . 2 . . . Extermination . | . . . . . Reinforcement 1 | . 1 . . . Assault . | . . . . . Garrison . | . . . . . Intercept . | . . . . . Searches Triggered . | . . . . . Construction Impeded . | . . . . . Haulers Reinforced . | . . . . . Active Scanning Responses . | . . . . . Cargo Convoy Interrupts . | . . . . . Stealth | -11 -10 -10 -10 -9 --------- Run | Yrd Mat Min Exi Min Distress Signals . | . . . . . Communications Jammed . | . . . . . Distress Signals . | . . . . . Times Spotted 36 | . 13 3 . 20 Peak Tracking Total 13 | . 3 3 . 13 Tactical Retreats 3 | . 1 . . 2 Traps | -11 -10 -10 -10 -9 ------- Run | Yrd Mat Min Exi Min Traps Triggered 1 | . 1 . . . Indirectly . | . . . . . Trap Hack Attempts . | . . . . . Triggered . | . . . . . Disarmed . | . . . . . Reprogrammed . | . . . . . Reused . | . . . . . Traps Extracted . | . . . . . Installed . | . . . . . Triggered . | . . . . . Machines | -11 -10 -10 -10 -9 ---------- Run | Yrd Mat Min Exi Min Machines Disabled 1 | . 1 . . . Max in Single Turn 1 | . 1 . . . Machines Repaired . | . . . . . Machines Dismantled . | . . . . . Machines Sabotaged . | . . . . . Overloaded Fab Kills . | . . . . . Hacking | -11 -10 -10 -10 -9 --------- Run | Yrd Mat Min Exi Min Machines Accessed 8 | . 6 . 2 . Terminals 3 | . 3 . . . Fabricators . | . . . . . Repair Stations 1 | . 1 . . . Recycling Units 2 | . 2 . . . Scanalyzers . | . . . . . Garrison Access . | . . . . . Total Hacks 19 | . 12 . 7 . Successful 13 | . 6 . 7 . Failed 6 | . 6 . . . Catastrophic 3 | . 3 . . . Database Lockouts . | . . . . . Manual 4 | . 3 . 1 . Terminals 5 | . 5 . . . Fabricators . | . . . . . Repair Stations 2 | . 2 . . . Recycling Units 5 | . 5 . . . Scanalyzers . | . . . . . Garrison Access . | . . . . . Terminal Hacks 8 | . 1 . 7 . Record 6 | . . . 6 . Locate Traps 1 | . 1 . . . Proto ID Catalog 1 | . . . 1 . Fabricator Hacks . | . . . . . Repair Station Hacks 2 | . 2 . . . Scan Component 1 | . 1 . . . Repair 1 | . 1 . . . Recycling Unit Hacks 3 | . 3 . . . Report Inventory 2 | . 2 . . . Retrieve Components 1 | . 1 . . . Scanalyzer . | . . . . . Garrison Access Hacks . | . . . . . Unauthorized Hacks . | . . . . . Terminals . | . . . . . Fabricators . | . . . . . Repair Stations . | . . . . . Recycling Units . | . . . . . Scanalyzers . | . . . . . Garrison Access . | . . . . . Data Cores Recovered 1 | . 1 . . . Used 1 | . 1 . . . Hacking Detections 6 | . 6 . . . Full Trace Events . | . . . . . Feedback Events . | . . . . . Feedback Blocked . | . . . . . Robot Schematics Acquired . | . . . . . Robots Built . | . . . . . Authchips . | . . . . . Time . | . . . . . Total Robot Build Rating . | . . . . . Part Schematics Acquired . | . . . . . Parts Built . | . . . . . Authchips . | . . . . . Time . | . . . . . Total Part Build Rating . | . . . . . Part Studies Acquired . | . . . . . Parts Repaired 1 | . 1 . . . Time 26 | . 26 . . . Parts Recycled . | . . . . . Recycled Matter . | . . . . . Retrieved Matter . | . . . . . Retrieved Components 6 | . 6 . . . Parts Scanalyzed . | . . . . . Part Schematics Acquired . | . . . . . Parts Damaged . | . . . . . Bothacking | -11 -10 -10 -10 -9 ------------ Run | Yrd Mat Min Exi Min Used RIF Installer . | . . . . . Robots Hacked . | . . . . . Non-combat . | . . . . . Combat . | . . . . . Robot Hacks Applied . | . . . . . Relay Couplers Released . | . . . . . Fabnet Peak Effective % . | . . . . . Robots Rewired 2 | . . . 2 . Allies Hacked . | . . . . . Hacks Repelled . | . . . . . Allies | -11 -10 -10 -10 -9 -------- Run | Yrd Mat Min Exi Min Total Allies 2 | . . . 2 . Largest Group 2 | . . . 2 2 Highest-Rated Group 16 | . . . 16 16 Highest-Rated Ally 8 | . . . 8 8 Total Orders . | . . . . . Ally Attacks 3 | . . . . 3 Total Damage . | . . . . . Kills . | . . . . . Allies Corrupted . | . . . . . Allies Melted . | . . . . . Intel | -11 -10 -10 -10 -9 ------- Run | Yrd Mat Min Exi Min Active Infowar (turns) 4322 | 78 1006 172 2881 185 Seismic 4322 | 78 1006 172 2881 185 Robot Analysis Total . | . . . . . Derelict Logs Recovered . | . . . . . Drone Launches . | . . . . . Drone Recoveries . | . . . . . Exploration | -11 -10 -10 -10 -9 ------------- Run | Yrd Mat Min Exi Min Turns Passed 4524 | 218 1006 172 2931 197 Spaces Moved 2083 | 110 488 104 1320 61 Core 24 | 24 . . . . Treads 2059 | 86 488 104 1320 61 Legs . | . . . . . Wheels . | . . . . . Hover . | . . . . . Flight . | . . . . . Fastest Speed 50 | 50 160 160 160 240 Average Speed 194 | 149 160 160 210 245 Slowest Speed 320 | 200 160 160 240 320 Overloaded Moves . | . . . . . Propulsion Burnouts . | . . . . . Robots Hopped . | . . . . . Potential Cave-ins . | . . . . . Cave-ins Triggered . | . . . . . Exploration Rate (%) 47 | 4 62 44 99 27 Regions Visited 4 Branch Regions 3 Pre-discovered Areas 1 | . . . 1 . Known Exits Taken . | . . . . . Unknown Exits Taken 4 | 1 1 1 1 . Scrap Searched 2 | . . 2 . . Spaces Dug 7 | . . . 7 . Terrain Destroyed 45 | 3 5 . 7 30 Melee 7 | . . . 7 . Projectile . | . . . . . AOE 38 | 3 5 . . 30 Terrain Rammed . | . . . . . Walls Destroyed . | . . . . . Machines Disabled . | . . . . . Actions | -11 -10 -10 -10 -9 --------- Run | Yrd Mat Min Exi Min Total 2425 | 141 674 108 1413 89 Wait 146 | 9 133 . . 4 Move 2079 | 109 487 103 1319 61 Hop . | . . . . . Pick Up 28 | 6 16 1 5 . Fast Attach 8 | 7 . . 1 . Attach 6 | . . . 1 5 Detach 2 | . . . 2 . Swap 9 | . 4 1 2 2 Drop 16 | . 9 1 6 . Fire 45 | 10 20 1 2 12 Melee 60 | . . . 55 5 Ram . | . . . . . Kick . | . . . . . Crush 6 | . 5 1 . . Escape Stasis . | . . . . . Rewire 20 | . . . 20 . Trap . | . . . . . Miscellaneous . | . . . . . Route ------- -11/Scrapyard -10/Materials (discovered 2 exits: [*Mat] / [*Min]) -10/Mines -10/Exiles -9/Mines History --------- Turn | Location | Event 54 | -11/Scrapyard | Discovered new exit (range 15) 219 | -11/Scrapyard | Entered Materials 315 | -10/Materials | Build established: Mutant 681 | -10/Materials | Discovered new exit (range 7) 687 | -10/Materials | Repaired Structural Scanner? 862 | -10/Materials | Discovered new exit (range 14) 1019 | -10/Materials | Derelicts attacked the area 1225 | -10/Materials | Entered Mines 1389 | -10/Mines | Deemed a non-threat by the Exiles lab entrance 1390 | -10/Mines | Discovered new exit (range 5) 1397 | -10/Mines | Entered Exiles 1397 | -10/Exiles | Found Exiles lab destroyed 1842 | -10/Exiles | Learned location of Zion (-7) 1982 | -10/Exiles | Opened EX-Vault 2754 | -10/Exiles | Discovered new exit (range 14) 3341 | -10/Exiles | Found Army-in-a-Box 4328 | -10/Exiles | Entered Mines 4328 | -9/Mines | Accompanied by 2 allies 4432 | -9/Mines | Assembled infested the area 4513 | -9/Mines | Core integrity fell below 50% 4520 | -9/Mines | Core integrity fell below 20% 4525 | -9/Mines | Destroyed by as-58034 with Assembled Heavy Rifle Last Messages --------------- 04472_ C-45 Heavy ARC bursts open, deploying its payload. 04472_ D-53 Grenadier unfolds itself. 04473_ Ion Engine destroyed. 04473_ System corrupted by crushing effect (+1). 04474_ K-01 Serf collects debris. 04475_ K-01 Serf destroyed. 04477_ as-10333 destroyed. 04477_ as-72275 destroyed. 04477_ EM Pulse Gun destroyed. 04479_ as-03033 destroyed. 04479_ as-02298 destroyed. 04480_ D-53 Grenadier destroyed. 04480_ as-98993 destroyed. 04481_ D-53 Grenadier destroyed. 04484_ The unstable cave ceiling collapses. 04490_ Acquired 8 matter. 04491_ Lgt. Treads destroyed. 04493_ as-90657 destroyed. 04501_ Lgt. Treads destroyed. 04513_ Lgt. Assault Rifle destroyed. Map ----- +----------------------------------------------------+ | ?????????????????????????????????????????????????? | | ?????????????????????????????????????????????????? | | ?????????????????????????????????????????????????? | | ???????????????????????? ????????????????????????? | | ???????????????????????? ????????????????????????? | | ???????????????????????? ???????????????????????? | | ?????????????????????? ???????????????????????? | | ?????????????????????? ???????????????????????? | | ?????????????????????? ???????????????????????? | | ####?????????????????? ???????????????????????? | | # ##????????????????? ????????????????????????? | | ###??????????????? ????????????????????????? | | ##?????????????? ?#####??????????????????? | | # #??????????????=% ?# ???????????????????? | | ## ##???????????###!#?# ???????????????????? | | ## ##??????????# =%#?# ##??????????????????? | | # ##????????## % ### #??????????????????? | | #????##### a## #??????????????????? | | #?#### ## ## #??###?????????????? | | #### ## ## ## ##????????????? | | ##?# ### %# #????????????? | | #??# % =a a #????????????? | | ## #??## %a ##????????????? | | #### ##???# #### = #?????????????? | | #??# #????# #??# #?????????????? | | ##??# ##??## #??# @ ## ##?????????????? | | #???# #### ##??# !=###?###??????????????? | | ????## ##???## $]%%= #???????????????????? | | ?????## ##????# u =!! ??????????????????? | | ??????## #????# $ ????????????????? | | ???????# #?? #### #???????????????? | | ???????# ## #????#???????????????? | | ???????## ### ## ##????????????????????? | | ????????####?### ### ##?????????????????????? | | ????????????????# #?## ???????????????????????? | | ?????????????????# #??#% ???????????????????????? | | ?????????????????? #??# ???????????????????????? | | ?????????????????? #??# ???????????????????????? | | ??????????????????? #??? ???????????????????????? | | ??????????????????? #??? #???????????????????????? | | ????????????????????#???#????????????????????????? | | ?????????????????????????????????????????????????? | | ?????????????????????????????????????????????????? | | ?????????????????????????????????????????????????? | | ?????????????????????????????????????????????????? | | ?????????????????????????????????????????????????? | | ?????????????????????????????????????????????????? | | ?????????????????????????????????????????????????? | | ?????????????????????????????????????????????????? | | ?????????????????????????????????????????????????? | +----------------------------------------------------+ Best States ------------- Heat Dissipation 25 Energy Generation 10 Energy Capacity 250 Matter Stores 300 Matter Capacity 300 Sight Range 16 Terrain Scan Density 10 Evasion (%) 40 Targeting Accuracy 5 Recoil Reduction 2 Item Schematics ----------------- None Robot Schematics ------------------ None Fabricated ------------ Nothing Repaired ---------- Structural Scanner | 70% | -10/Materials Studied --------- None Alien Tech Used ----------------- None Achievements -------------- Ghost 'Em Luggage Code Challenges ------------ None Game ------ Seed EtherialMachineBlaster Manual? 0 Play Time 00:30:59 Cumulative 152.5 hours Start 2026.04.07 @ 16:52:35 End 2026.04.07 @ 17:30:54 Sessions 1 Manual Loads 0 Difficulty Rogue Special Mode None Game No. 69 Rogue 69 Adventurer 0 Explorer 0 Win Type - Total 10 Types 10/0/0/0/0/0/0/0/0/0 Lore% 69 Gallery% 60 Achievement% 33 Wizard Run 0 Options --------- Layout 0 ASCII 0 Keyboard 1 Movement Numpad Keybinds 0 Fullscreen 1 Font 18/Cog Map View 76x50 Zoom Use 4% Tactical HUD 1 Map Filters NONE Filters NONE Steam 1 RUN: 3a23abd8-c259-4c37-ae75-c09a77317052